fUSD/lending_fUSD_20250115
["ID","MTS","AMOUNT","RATE_DAILY","PERIOD"]
[348971908,1736904641462,-500.0,0.0001279,2]
[348971909,1736904641471,-500.0,0.0001279,2]
[348971910,1736904641481,-578.06460965,0.00012797,2]
[348971911,1736904641490,-414.36,0.000128,2]
[348971912,1736904641499,-414.36,0.000128,2]
[348971913,1736904641508,-414.36,0.000128,2]
[348971914,1736904641519,-414.36,0.000128,2]
[348971915,1736904641528,-414.36,0.000128,2]
[348971916,1736904641538,-414.36,0.000128,2]
[348971917,1736904641547,-414.36,0.000128,2]
[348971918,1736904641557,-414.36,0.000128,2]
[348971919,1736904641566,-414.36,0.000128,2]
[348971920,1736904641575,-414.36,0.000128,2]
[348971921,1736904641586,-414.36,0.000128,2]
[348971922,1736904641596,-414.36,0.000128,2]
[348971923,1736904641607,-414.36,0.000128,2]
[348971924,1736904641617,-414.36,0.000128,2]
[348971925,1736904641627,-414.36,0.000128,2]
[348971926,1736904641636,-414.36,0.000128,2]
[348971927,1736904641645,-414.36,0.000128,2]
[348971928,1736904641655,-414.36,0.000128,2]
[348971929,1736904641665,-414.36,0.000128,2]
[348971930,1736904641675,-414.36,0.000128,2]
[348971931,1736904641686,-414.36,0.000128,2]
[348971932,1736904641696,-414.36,0.000128,2]
[348971933,1736904641705,-414.36,0.000128,2]
[348971934,1736904641715,-414.36,0.000128,2]
[348971935,1736904641725,-414.36,0.000128,2]
[348971936,1736904641734,-414.36,0.000128,2]
[348971937,1736904641744,-414.36,0.000128,2]
[348971938,1736904641754,-414.36,0.000128,2]
[348971939,1736904641763,-414.36,0.000128,2]
[348971940,1736904641774,-414.36,0.000128,2]
[348971941,1736904641784,-414.36,0.000128,2]
[348971942,1736904641794,-414.36,0.000128,2]
[348971943,1736904641803,-414.36,0.000128,2]
[348971944,1736904641812,-414.36,0.000128,2]
[348971945,1736904641821,-414.36,0.000128,2]
[348971946,1736904641830,-414.36,0.000128,2]
[348971947,1736904641839,-414.36,0.000128,2]
[348971948,1736904641848,-414.36,0.000128,2]
[348971949,1736904641858,-414.36,0.000128,2]
[348971950,1736904641868,-414.36,0.000128,2]
[348971951,1736904641877,-414.36,0.000128,2]
[348971952,1736904641886,-414.36,0.000128,2]
[348971953,1736904641896,-414.36,0.000128,2]
[348971954,1736904641905,-414.36,0.000128,2]
[348971955,1736904641914,-414.36,0.000128,2]
[348971956,1736904641924,-414.36,0.000128,2]
[348971957,1736904641934,-414.36,0.000128,2]
[348971958,1736904641943,-414.36,0.000128,2]
[348971959,1736904641952,-414.36,0.000128,2]
[348971960,1736904641961,-414.36,0.000128,2]
[348971961,1736904641971,-414.36,0.000128,2]
[348971962,1736904641980,-414.36,0.000128,2]
[348971963,1736904641989,-414.36,0.000128,2]
[348971964,1736904641998,-414.36,0.000128,2]
[348971965,1736904642007,-414.36,0.000128,2]
[348971966,1736904642017,-414.36,0.000128,2]
[348971967,1736904642026,-414.36,0.000128,2]
[348971968,1736904642035,-414.36,0.000128,2]
[348971969,1736904642045,-414.36,0.000128,2]
[348971970,1736904642054,-414.36,0.000128,2]
[348971971,1736904642064,-414.36,0.000128,2]
[348971972,1736904642073,-414.36,0.000128,2]
[348971973,1736904642082,-414.36,0.000128,2]
[348971974,1736904642091,-414.36,0.000128,2]
[348971975,1736904642100,-414.36,0.000128,2]
[348971976,1736904642109,-414.36,0.000128,2]
[348971977,1736904642119,-414.36,0.000128,2]
[348971978,1736904642129,-414.36,0.000128,2]
[348971979,1736904642138,-414.36,0.000128,2]
[348971980,1736904642148,-414.36,0.000128,2]
[348971981,1736904642157,-414.36,0.000128,2]
[348971982,1736904642167,-414.36,0.000128,2]
[348971983,1736904642176,-414.36,0.000128,2]
[348971984,1736904642188,-414.36,0.000128,2]
[348971985,1736904642197,-414.36,0.000128,2]
[348971986,1736904642206,-414.36,0.000128,2]
[348971987,1736904642215,-414.36,0.000128,2]
[348971988,1736904642225,-414.36,0.000128,2]
[348971989,1736904642234,-414.36,0.000128,2]
[348971990,1736904642243,-414.36,0.000128,2]
[348971991,1736904642252,-414.36,0.000128,2]
[348971992,1736904642262,-414.36,0.000128,2]
[348971993,1736904642271,-799.83,0.00012915,2]
[348971994,1736904642280,-500.0,0.00012915,2]
[348971995,1736904642289,-500.0,0.00012915,2]
[348971996,1736904642298,-500.0,0.00012915,2]
[348971997,1736904642307,-500.0,0.00012915,2]
[348971998,1736904642317,-600.0,0.00013,2]
[348971999,1736904642326,-414.36,0.00013001,2]
[348972000,1736904642336,-500.0,0.00013011,2]
[348972001,1736904642344,-500.0,0.00013011,2]
[348972002,1736904642353,-500.0,0.00013011,2]
[348972003,1736904642362,-500.0,0.00013011,2]
[348972004,1736904642371,-500.0,0.00013011,2]
[348972005,1736904642380,-500.0,0.00013011,2]
[348972006,1736904642389,-500.0,0.00013011,2]
[348972007,1736904642398,-500.0,0.00013044,2]
[348972008,1736904642407,-500.0,0.00013044,2]
[348972009,1736904642416,-500.0,0.00013044,2]
[348972010,1736904642425,-621.13723635,0.00013064,2]
[348972011,1736904642434,-500.0,0.00013064,2]
[348972012,1736904642445,-1353.38,0.00013064,2]
[348972013,1736904642454,-500.0,0.00013064,2]
[348972014,1736904642464,-500.0,0.00013064,2]
[348972015,1736904642473,-772.32,0.00013096,2]
[348972016,1736904642482,-437.34,0.00013096,2]
[348972017,1736904642491,-772.32,0.00013096,2]
[348972018,1736904642500,-5800.0,0.00013161,2]
[348972019,1736904642510,-5800.0,0.00013169,2]
[348972020,1736904642519,-578.06460965,0.00013176,2]
[348972021,1736904642528,-5800.0,0.00013178,2]
[348972022,1736904642537,-5800.0,0.00013186,2]
[348972023,1736904642546,-799.83,0.00013189,2]
[348972024,1736904642555,-500.0,0.00013189,2]
[348972025,1736904642564,-500.0,0.00013189,2]
[348972026,1736904642573,-500.0,0.00013189,2]
[348972027,1736904642583,-500.0,0.00013189,2]
[348972028,1736904642592,-5800.0,0.00013195,2]
[348972029,1736904642601,-5800.0,0.00013203,2]
[348972030,1736904642611,-414.36,0.0001321,2]
[348972031,1736904642621,-5800.0,0.00013212,2]
[348972032,1736904642630,-5800.0,0.0001322,2]
[348972033,1736904642639,-5800.0,0.00013229,2]
[348972034,1736904642648,-5800.0,0.00013237,2]
[348972035,1736904642658,-500.0,0.00013285,2]
[348972036,1736904642667,-500.0,0.00013285,2]
[348972037,1736904642677,-500.0,0.00013285,2]
[348972038,1736904642686,-500.0,0.00013285,2]
[348972039,1736904642696,-500.0,0.00013285,2]
[348972040,1736904642705,-500.0,0.00013285,2]
[348972041,1736904642715,-368.78670987,0.00013285,2]
[348972042,1736904642727,-823.0,0.00013309,2]
[348972043,1736904642737,-500.0,0.00013318,2]
[348972044,1736904642746,-500.0,0.00013318,2]
[348972045,1736904642755,-500.0,0.00013318,2]
[348972046,1736904642765,-200.0,0.00013324,2]
[348972047,1736904642774,-500.0,0.00013338,2]
[348972048,1736904642784,-1353.38,0.00013338,2]
[348972049,1736904642792,-500.0,0.00013338,2]
[348972050,1736904642801,-500.0,0.00013338,2]
[348972051,1736904642811,-508.94,0.00013445,2]
[348972052,1736904642820,-1487.9128,0.00013455,2]
[348972053,1736904642829,-799.83,0.00013463,2]
[348972054,1736904642837,-500.0,0.00013463,2]
[348972055,1736904642847,-500.0,0.00013463,2]
[348972056,1736904642857,-399.61253862,0.00013463,2]
[348972057,1736904642866,-500.0,0.00013463,2]
[348972058,1736904642875,-3639.66523741,0.00013527,2]
[348972059,1736904642884,-578.06460965,0.00013555,2]
[348972060,1736904642893,-600.98637307,0.00013559,2]
[348972061,1736904642903,-500.0,0.00013559,2]
[348972062,1736904642912,-500.0,0.00013559,2]
[348972063,1736904642923,-500.0,0.00013559,2]
[348972064,1736904642932,-500.0,0.00013559,2]
[348972065,1736904642942,-500.0,0.00013559,2]
[348972066,1736904642951,-500.0,0.00013592,2]
[348972067,1736904642960,-500.0,0.00013592,2]
[348972068,1736904642969,-500.0,0.00013592,2]
[348972069,1736904642978,-500.0,0.00013612,2]
[348972070,1736904642987,-1353.38,0.00013612,2]
[348972073,1736904642995,-500.0,0.00013612,2]
[348972074,1736904643004,-500.0,0.00013612,2]
[348972075,1736904643013,-500.0,0.00013698,2]
[348972076,1736904643022,-500.0,0.00013698,2]
[348972077,1736904643031,-500.0,0.00013698,2]
[348972078,1736904643040,-500.0,0.00013698,2]
[348972079,1736904643050,-500.0,0.00013698,2]
[348972080,1736904643060,-500.0,0.00013698,2]
[348972081,1736904643069,-200.0,0.00013699,2]
[348972082,1736904643079,-500.0,0.00013699,2]
[348972083,1736904643088,-283.3625443,0.00013699,2]
[348972084,1736904643097,-516.91,0.000137,2]
[348972085,1736904643106,-516.91,0.000137,2]
[348972086,1736904643116,-516.91,0.000137,2]
[348972088,1736904643125,-516.91,0.000137,2]
[348972090,1736904643134,-516.91,0.000137,2]
[348972093,1736904643143,-799.83,0.00013737,2]
[348972095,1736904643152,-455.28124782,0.00013737,2]
[348972096,1736904643161,-500.0,0.00013737,2]
[348972097,1736904643170,-500.0,0.00013737,2]
[348972098,1736904643180,-414.36,0.00013823,2]
[348972099,1736904643191,-500.0,0.00013833,2]
[348972100,1736904643200,-500.0,0.00013833,2]
[348972101,1736904643209,-500.0,0.00013833,2]
[348972102,1736904643219,-378.58736181,0.00013833,2]
[348972103,1736904643228,-500.0,0.00013833,2]
[348972104,1736904643237,-500.0,0.00013866,2]
[348972105,1736904643247,-500.0,0.00013866,2]
[348972106,1736904643256,-500.0,0.00013866,2]
[348972107,1736904643267,-500.0,0.00013885,2]
[348972108,1736904643277,-500.0,0.00013886,2]
[348972109,1736904643288,-1353.38,0.00013886,2]
[348972110,1736904643298,-500.0,0.00013886,2]
[348972111,1736904643308,-500.0,0.00013886,2]
[348972112,1736904643318,-365.0,0.000139,2]
[348972113,1736904643328,-578.06460965,0.00013934,2]
[348972114,1736904643338,-700.0,0.00013972,2]
[348972115,1736904643349,-2000.0,0.00013972,2]
[348972116,1736904643358,-500.0,0.00013972,2]
[348972117,1736904643367,-500.0,0.00013987,2]
[348972118,1736904643376,-500.0,0.00013987,2]
[348972119,1736904643385,-500.0,0.00013987,2]
[348972120,1736904643394,-200.0,0.00013987,2]
[348972121,1736904643403,-384.47259597,0.00014,2]
[348972122,1736904643413,-799.83,0.00014011,2]
[348972123,1736904643425,-500.0,0.00014011,2]
[348972124,1736904643435,-500.0,0.00014011,2]
[348972125,1736904643456,-500.0,0.00014107,2]
[348972126,1736904643467,-500.0,0.00014107,2]
[348972127,1736904643477,-500.0,0.00014107,2]
[348972128,1736904643487,-500.0,0.00014107,2]
[348972129,1736904643496,-500.0,0.0001414,2]
[348972130,1736904643507,-273.44426856,0.0001414,2]
[348972131,1736904643516,-500.0,0.0001414,2]
[348972132,1736904643526,-500.0,0.00014159,2]
[348972133,1736904643536,-500.0,0.0001416,2]
[348972134,1736904643546,-1353.38,0.0001416,2]
[348972135,1736904643556,-500.0,0.0001416,2]
[348972136,1736904643566,-500.0,0.0001416,2]
[348972137,1736904643575,-799.83,0.00014285,2]
[348972138,1736904643585,-500.0,0.00014285,2]
[348972139,1736904643595,-500.0,0.00014285,2]
[348972140,1736904643604,-578.06460965,0.00014314,2]
[348972141,1736904643613,-500.0,0.00014379,2]
[348972142,1736904643622,-500.0,0.00014379,2]
[348972143,1736904643632,-500.0,0.00014379,2]
[348972144,1736904643642,-500.0,0.00014379,2]
[348972145,1736904643652,-500.0,0.00014379,2]
[348972147,1736904643661,-500.0,0.00014379,2]
[348972149,1736904643671,-500.0,0.00014379,2]
[348972150,1736904643684,-500.0,0.00014379,2]
[348972152,1736904643696,-500.0,0.0001438,2]
[348972154,1736904643705,-234.81181,0.0001438,2]
[348972156,1736904643715,-548.31,0.0001438,2]
[348972158,1736904643724,-274.901609,0.0001438,2]
[348972159,1736904643734,-500.0,0.0001438,2]
[348972160,1736904643743,-538.94,0.0001438,2]
[348972161,1736904643753,-500.0,0.0001438,2]
[348972162,1736904643763,-500.0,0.0001438,2]
[348972163,1736904643773,-500.0,0.0001438,2]
[348972164,1736904643783,-500.0,0.0001438,2]
[348972165,1736904643793,-500.0,0.0001438,2]
[348972167,1736904643803,-500.0,0.0001438,2]
[348972168,1736904643812,-500.0,0.0001438,2]
[348972169,1736904643822,-500.0,0.0001438,2]
[348972170,1736904643831,-500.0,0.0001438,2]
[348972171,1736904643841,-500.0,0.0001438,2]
[348972172,1736904643850,-500.0,0.0001438,2]
[348972173,1736904643860,-933.89,0.0001438,2]
[348972174,1736904643870,-1057.27,0.0001438,2]
[348972175,1736904643879,-671.81,0.0001438,2]
[348972176,1736904643888,-500.0,0.00014381,2]
[348972177,1736904643899,-500.0,0.00014381,2]
[348972178,1736904643908,-500.0,0.00014381,2]
[348972179,1736904643917,-500.0,0.00014381,2]
[348972180,1736904643927,-500.0,0.00014414,2]
[348972181,1736904643937,-415.24342381,0.00014414,2]
[348972182,1736904643947,-230.96,0.00014433,2]
[348972183,1736904643956,-500.0,0.00014433,2]
[348972184,1736904643966,-500.0,0.00014433,2]
[348972185,1736904643976,-500.0,0.00014433,2]
[348972186,1736904643986,-500.0,0.00014433,2]
[348972187,1736904643995,-191.93970329,0.00014433,2]
[348972188,1736904644004,-500.0,0.00014433,2]
[348972189,1736904644014,-500.0,0.00014433,2]
[348972190,1736904644023,-500.0,0.00014433,2]
[348972191,1736904644033,-500.0,0.00014433,2]
[348972192,1736904644042,-500.0,0.00014433,2]
[348972193,1736904644053,-500.0,0.00014433,2]
[348972194,1736904644064,-500.0,0.00014433,2]
[348972195,1736904644074,-500.0,0.00014433,2]
[348972196,1736904644083,-508.92836554,0.00014433,2]
[348972197,1736904644093,-575.28,0.00014433,2]
[348972198,1736904644102,-500.0,0.00014434,2]
[348972199,1736904644111,-1353.38,0.00014434,2]
[348972200,1736904644121,-167.82953866,0.00014434,2]
[348972201,1736904644130,-500.0,0.00014434,2]
[348972202,1736904644138,-799.83,0.00014559,2]
[348972203,1736904644148,-500.0,0.00014559,2]
[348972204,1736904644157,-500.0,0.00014559,2]
[348972205,1736904644167,-158.53,0.00014596,2]
[348972206,1736904644176,-414.36,0.00014619,2]
[348972207,1736904644185,-3113.958,0.00014629,2]
[348972208,1736904644195,-186.283,0.00014629,2]
[348972209,1736904644204,-500.0,0.00014653,2]
[348972210,1736904644213,-500.0,0.00014653,2]
[348972211,1736904644222,-170.47385913,0.00014653,2]
[348972212,1736904644231,-500.0,0.00014653,2]
[348972213,1736904644240,-500.0,0.00014653,2]
[348972214,1736904644250,-500.0,0.00014653,2]
[348972215,1736904644259,-649.62007673,0.00014653,2]
[348972216,1736904644268,-314.88,0.00014654,2]
[348972217,1736904644277,-234.81181,0.00014654,2]
[348972218,1736904644286,-548.31,0.00014654,2]
[348972219,1736904644295,-274.901609,0.00014654,2]
[348972220,1736904644305,-500.0,0.00014654,2]
[348972221,1736904644314,-538.94,0.00014654,2]
[348972222,1736904644324,-500.0,0.00014654,2]
[348972223,1736904644333,-500.0,0.00014654,2]
[348972224,1736904644343,-500.0,0.00014654,2]
[348972225,1736904644352,-500.0,0.00014654,2]
[348972226,1736904644361,-500.0,0.00014654,2]
[348972227,1736904644371,-500.0,0.00014654,2]
[348972228,1736904644381,-500.0,0.00014654,2]
[348972229,1736904644390,-500.0,0.00014654,2]
[348972230,1736904644399,-933.89,0.00014654,2]
[348972231,1736904644409,-1057.27,0.00014654,2]
[348972232,1736904644418,-671.81,0.00014654,2]
[348972233,1736904644428,-281.86,0.00014655,2]
[348972234,1736904644438,-119.22483317,0.00014655,2]
[348972235,1736904644787,-380.77516683,0.00014655,2]
[348972236,1736904644797,-500.0,0.00014655,2]
[348972237,1736904644806,-500.0,0.00014655,2]
[348972238,1736904644815,-578.06460965,0.00014693,2]
[348972239,1736904644825,-98.55935876,0.00014697,2]
[348972240,1736904644838,-251.43202999,0.00014697,2]
[348972241,1736904644850,-79.9470367,0.00014697,2]
[348972242,1736904644859,-177.0929633,0.00014706,2]
[348972243,1736904644876,-322.9070367,0.00014706,2]
[348972244,1736904644887,-500.0,0.00014706,2]
[348972245,1736904644897,-228.4487758,0.00014706,2]
[348972246,1736904644909,-104.82359384,0.00014706,2]
[348972247,1736904644918,-500.0,0.00014706,2]
[348972248,1736904644927,-500.0,0.00014706,2]
[348972249,1736904644936,-445.49511898,0.00014706,2]
[348972250,1736904644946,-500.0,0.00014706,2]
[348972251,1736904644956,-500.0,0.00014706,2]
[348972252,1736904644965,-897.19,0.00014706,2]
[348972253,1736904644975,-500.0,0.00014706,2]
[348972254,1736904644985,-500.0,0.00014706,2]
[348972255,1736904644994,-500.0,0.00014706,2]
[348972256,1736904645003,-1043.93,0.00014706,2]
[348972257,1736904645013,-500.0,0.00014706,2]
[348972258,1736904645022,-500.0,0.00014707,2]
[348972259,1736904645032,-500.0,0.00014707,2]
[348972260,1736904645041,-500.0,0.00014707,2]
[348972261,1736904645050,-500.0,0.00014707,2]
[348972262,1736904645059,-500.0,0.00014707,2]
[348972263,1736904645069,-500.0,0.00014707,2]
[348972264,1736904645078,-514.41384322,0.00014707,2]
[348972265,1736904645087,-500.0,0.00014707,2]
[348972266,1736904645096,-500.0,0.00014707,2]
[348972267,1736904645105,-575.28,0.00014707,2]
[348972268,1736904645114,-500.0,0.00014708,2]
[348972269,1736904645123,-1353.38,0.00014708,2]
[348972270,1736904645132,-500.0,0.00014708,2]
[348972271,1736904645142,-150.0,0.00014728,2]
[348972272,1736904645151,-150.0,0.00014728,2]
[348972273,1736904645159,-150.0,0.00014731,2]
[348972274,1736904645168,-150.0,0.00014731,2]
[348972275,1736904645177,-150.0,0.00014731,2]
[348972276,1736904645187,-150.0,0.00014741,2]
[348972277,1736904645197,-150.0,0.00014742,2]
[348972278,1736904645206,-150.0,0.00014748,2]
[348972279,1736904645215,-150.0,0.00014749,2]
[348972280,1736904645223,-150.0,0.0001475,2]
[348972281,1736904645233,-150.0,0.00014759,2]
[348972282,1736904645242,-150.0,0.00014761,2]
[348972283,1736904645251,-150.0,0.00014767,2]
[348972284,1736904645259,-150.0,0.00014769,2]
[348972285,1736904645269,-414.36,0.00014773,2]
[348972286,1736904645278,-150.0,0.00014774,2]
[348972287,1736904645287,-150.0,0.00014775,2]
[348972288,1736904645296,-150.0,0.00014776,2]
[348972289,1736904645306,-150.0,0.00014778,2]
[348972290,1736904645315,-150.0,0.00014779,2]
[348972291,1736904645324,-150.0,0.0001478,2]
[348972292,1736904645333,-150.0,0.00014781,2]
[348972293,1736904645343,-10313.42667086,0.00014783,2]
[348972294,1736904645354,-28600.0,0.00014783,2]
[348972295,1736904645570,-249.62312075,9.999e-05,2]
[348972296,1736904645581,-361.78480155,0.0001,2]
[348972297,1736904645592,-243.14957089,0.00012329,2]
[348972298,1736904645603,-85.80042911,0.00012329,2]
[348972299,1736904645613,-1887.59957089,0.00014783,2]
[348972300,1736904645625,-14753.97375825,0.00014783,2]
[348972301,1736904645634,-150.0,0.00014788,2]
[348972302,1736904645643,-150.0,0.00014792,2]
[348972303,1736904645653,-150.0,0.00014795,2]
[348972304,1736904645664,-150.0,0.00014796,2]
[348972305,1736904645674,-150.0,0.00014806,2]
[348972306,1736904645684,-150.0,0.00014809,2]
[348972307,1736904645694,-150.0,0.00014811,2]
[348972308,1736904645703,-150.0,0.00014816,2]
[348972309,1736904645713,-150.0,0.0001482,2]
[348972310,1736904645722,-150.0,0.00014824,2]
[348972311,1736904645735,-150.0,0.00014825,2]
[348972312,1736904645745,-150.0,0.00014825,2]
[348972313,1736904645754,-16.24853355,0.00014829,2]
[348972314,1736904645774,-165.7047176,0.0001,2]
[348972315,1736904645783,-133.75146645,0.00014829,2]
[348972316,1736904645792,-150.0,0.00014829,2]
[348972317,1736904645801,-50.54381595,0.0001483,2]
[348972318,1736904645812,-99.45618405,0.0001483,2]
[348972319,1736904645822,-799.83,0.00014833,2]
[348972320,1736904645830,-500.0,0.00014833,2]
[348972321,1736904645840,-500.0,0.00014833,2]
[348972322,1736904645850,-150.0,0.0001484,2]
[348972323,1736904645859,-150.0,0.00014843,2]
[348972324,1736904645868,-150.0,0.00014849,2]
[348972325,1736904645878,-145.71381594,0.00014852,2]
[348972337,1736904646322,-150.0,0.00014725,2]
[348972338,1736904646331,-150.0,0.00014769,2]
[348972339,1736904646341,-150.0,0.00014784,2]
[348972340,1736904646350,-150.0,0.00014788,2]
[348972341,1736904646362,-150.0,0.00014803,2]
[348972342,1736904646372,-150.0,0.00014826,2]
[348972343,1736904646381,-150.0,0.00014847,2]
[348972344,1736904646390,-4.28618406,0.00014852,2]
[348972345,1736904646400,-150.0,0.00014852,2]
[348972346,1736904646409,-150.0,0.00014853,2]
[348972347,1736904646419,-250.0,0.00014854,2]
[348972348,1736904646431,-150.0,0.00014854,2]
[348972349,1736904646440,-150.0,0.00014856,2]
[348972350,1736904646451,-150.0,0.00014857,2]
[348972351,1736904646460,-150.0,0.00014857,2]
[348972352,1736904646469,-150.0,0.00014858,2]
[348972353,1736904646478,-150.0,0.00014858,2]
[348972354,1736904646487,-150.0,0.00014862,2]
[348972355,1736904646497,-150.0,0.00014869,2]
[348972356,1736904646506,-150.0,0.00014869,2]
[348972357,1736904646517,-150.0,0.00014871,2]
[348972358,1736904646527,-150.0,0.00014871,2]
[348972359,1736904646538,-150.0,0.00014875,2]
[348972360,1736904646548,-150.0,0.00014875,2]
[348972361,1736904646557,-150.0,0.00014877,2]
[348972362,1736904646567,-150.0,0.00014877,2]
[348972363,1736904646578,-150.0,0.00014877,2]
[348972364,1736904646589,-150.0,0.00014877,2]
[348972365,1736904646598,-150.0,0.00014878,2]
[348972366,1736904646608,-150.0,0.0001488,2]
[348972367,1736904646617,-150.0,0.0001488,2]
[348972368,1736904646627,-150.0,0.00014883,2]
[348972369,1736904646637,-150.0,0.00014886,2]
[348972370,1736904646647,-150.0,0.00014889,2]
[348972371,1736904646656,-414.36,0.0001489,2]
[348972372,1736904646666,-150.0,0.00014894,2]
[348972373,1736904646675,-150.0,0.00014894,2]
[348972374,1736904646684,-150.0,0.00014895,2]
[348972375,1736904646695,-150.0,0.00014898,2]
[348972376,1736904646704,-150.0,0.00014899,2]
[348972377,1736904646714,-150.0,0.00014899,2]
[348972378,1736904646725,-150.0,0.000149,2]
[348972379,1736904646735,-214.94834759,0.000149,2]
[348972381,1736904646746,-13332.97380888,0.000149,2]
[348972382,1736904646756,-830.84430119,0.000149,2]
[348972383,1736904646765,-150.0,0.00014901,2]
[348972384,1736904646775,-150.0,0.00014903,2]
[348972385,1736904646784,-150.0,0.00014903,2]
[348972386,1736904646794,-150.0,0.00014904,2]
[348972387,1736904646803,-150.0,0.00014905,2]
[348972388,1736904646813,-150.0,0.00014906,2]
[348972389,1736904646823,-150.0,0.00014907,2]
[348972390,1736904646833,-150.0,0.00014908,2]
[348972391,1736904646842,-150.0,0.00014911,2]
[348972392,1736904646852,-150.0,0.00014913,2]
[348972393,1736904646861,-150.0,0.00014914,2]
[348972394,1736904646870,-150.0,0.00014919,2]
[348972395,1736904646880,-150.0,0.0001492,2]
[348972396,1736904646890,-150.0,0.00014922,2]
[348972397,1736904646899,-150.0,0.00014922,2]
[348972398,1736904646908,-150.0,0.00014924,2]
[348972399,1736904646919,-200.1811951,0.00014925,2]
[348972400,1736904646929,-150.0,0.00014925,2]
[348972401,1736904646938,-500.0,0.00014927,2]
[348972402,1736904646950,-500.0,0.00014927,2]
[348972403,1736904646960,-500.0,0.00014927,2]
[348972404,1736904646970,-500.0,0.00014927,2]
[348972405,1736904646979,-234.81181,0.00014928,2]
[348972406,1736904646988,-548.31,0.00014928,2]
[348972407,1736904646997,-500.0,0.00014928,2]
[348972408,1736904647007,-538.94,0.00014928,2]
[348972409,1736904647016,-500.0,0.00014928,2]
[348972410,1736904647026,-500.0,0.00014928,2]
[348972411,1736904647036,-500.0,0.00014928,2]
[348972412,1736904647046,-500.0,0.00014928,2]
[348972413,1736904647055,-500.0,0.00014928,2]
[348972414,1736904647065,-500.0,0.00014928,2]
[348972415,1736904647074,-500.0,0.00014928,2]
[348972416,1736904647122,-500.0,0.00014928,2]
[348972417,1736904647132,-933.89,0.00014928,2]
[348972418,1736904647141,-1057.27,0.00014928,2]
[348972419,1736904647150,-671.81,0.00014928,2]
[348972420,1736904647159,-150.0,0.00014928,2]
[348972421,1736904647168,-500.0,0.00014929,2]
[348972422,1736904647178,-500.0,0.00014929,2]
[348972423,1736904647188,-500.0,0.00014929,2]
[348972424,1736904647199,-150.0,0.00014931,2]
[348972425,1736904647208,-150.0,0.00014938,2]
[348972426,1736904647218,-508.94,0.00014938,2]
[348972427,1736904647227,-150.0,0.0001494,2]
[348972428,1736904647236,-150.0,0.00014942,2]
[348972429,1736904647245,-150.0,0.00014943,2]
[348972430,1736904647255,-150.0,0.00014945,2]
[348972431,1736904647264,-150.0,0.00014949,2]
[348972432,1736904647273,-150.0,0.00014954,2]
[348972433,1736904647282,-150.0,0.00014956,2]